bitfinex/quotes_BTCUSD_20240906
["timestamp","ask_amount","ask_price","bid_price","bid_amount"]
[1725664353467,0.001,53797.0,53795.0,0.200889]
[1725664353680,0.001,53797.0,53796.0,0.283587]
[1725664353900,0.185878,53799.0,53796.0,0.283587]
[1725664354126,0.001,53797.0,53796.0,0.0977]
[1725664354996,0.002,53797.0,53796.0,0.0977]
[1725664355230,0.187883,53797.0,53796.0,0.0977]
[1725664355444,0.2206858,53797.0,53795.0,0.014]
[1725664355689,0.185887,53796.0,53795.0,0.014]
[1725664355916,0.0348028,53797.0,53795.0,0.014]
[1725664356131,0.0328028,53796.0,53795.0,0.014]
[1725664356348,0.0328028,53796.0,53794.0,0.267324]
[1725664356568,0.0328028,53796.0,53795.0,0.014]
[1725664356793,0.001,53797.0,53795.0,0.014]
[1725664357066,0.03279113,53796.0,53795.0,0.014]
[1725664357298,0.03279113,53796.0,53795.0,0.028]
[1725664357513,0.03279113,53796.0,53795.0,0.014]
[1725664357733,0.03279113,53796.0,53795.0,0.19989]
[1725664357979,0.03379113,53796.0,53795.0,0.028]
[1725664358234,0.03379113,53796.0,53795.0,0.014]
[1725664358458,0.03479113,53796.0,53795.0,0.028]
[1725664360694,0.22067813,53796.0,53795.0,0.028]
[1725664361125,0.03479113,53796.0,53795.0,0.028]
[1725664361806,0.22067813,53796.0,53795.0,0.028]
[1725664362451,0.23804512,53796.0,53795.0,0.028]
[1725664362678,0.05215812,53796.0,53795.0,0.1076]
[1725664364029,0.05215812,53796.0,53795.0,0.2033]
[1725664366473,0.05215744,53796.0,53795.0,0.38919]
[1725664366723,0.05215744,53796.0,53795.0,1.527533]
[1725664366942,0.01936631,53796.0,53795.0,1.527533]
[1725664367597,0.01936631,53796.0,53795.0,1.155752]
[1725664369793,0.01936631,53796.0,53795.0,1.527533]
[1725664370469,0.01936631,53796.0,53795.0,2.802833]
[1725664370753,0.01936631,53796.0,53795.0,2.804463]
[1725664371025,0.01936631,53796.0,53795.0,2.806463]
[1725664371248,0.002,53796.0,53795.0,2.806463]
[1725664372095,0.001,53796.0,53795.0,2.792463]
[1725664372358,0.000815,53799.0,53798.0,0.18588]
[1725664372566,0.000815,53799.0,53798.0,0.580641]
[1725664372567,0.01818425,53799.0,53798.0,0.580641]
[1725664372770,0.01818425,53799.0,53798.0,1.499463]
[1725664372987,0.01818421,53799.0,53798.0,1.499463]
[1725664373651,0.01818421,53799.0,53798.0,1.513463]
[1725664373901,0.30712415,53812.0,53803.0,0.371726]
[1725664374122,0.185839,53810.0,53806.0,0.185851]
[1725664374652,0.03284779,53809.0,53806.0,0.185851]
[1725664375355,0.03284779,53809.0,53807.0,0.185849]
[1725664375835,0.185834,53812.0,53808.0,0.0957]
[1725664376079,0.0553972,53815.0,53808.0,0.0957]
[1725664376080,0.0553972,53815.0,53810.0,0.185838]
[1725664376320,0.185829,53813.0,53809.0,0.185842]
[1725664376547,0.37164,53816.0,53810.0,0.265435]
[1725664376776,0.185826,53814.0,53810.0,0.265435]
[1725664376992,0.185828,53813.0,53810.0,0.265435]
[1725664377284,0.185828,53813.0,53810.0,0.0796]
[1725664377523,0.000815,53817.0,53816.0,0.185818]
[1725664377760,0.000815,53817.0,53816.0,0.361118]
[1725664378725,0.000815,53817.0,53816.0,0.1753]
[1725664378965,0.000815,53817.0,53816.0,0.1863]
[1725664379183,0.000815,53817.0,53816.0,0.372118]
[1725664379414,0.000815,53817.0,53816.0,0.386118]
[1725664380160,0.000815,53817.0,53816.0,0.372118]
[1725664380403,0.000815,53817.0,53816.0,0.375118]
[1725664380629,0.000815,53817.0,53816.0,0.389118]
[1725664381093,0.000815,53817.0,53816.0,0.2033]
[1725664381308,0.000815,53817.0,53816.0,0.375118]
[1725664381528,0.000815,53817.0,53816.0,0.389118]
[1725664381742,0.000815,53817.0,53816.0,0.375118]
[1725664381958,0.03379115,53817.0,53816.0,0.375118]
[1725664382428,0.03379115,53817.0,53816.0,0.361118]
[1725664382643,0.03379115,53817.0,53816.0,0.375118]
[1725664383490,0.03379115,53817.0,53816.0,0.389118]
[1725664383951,0.03379115,53817.0,53816.0,0.375118]
[1725664384169,0.03379115,53817.0,53816.0,0.389118]
[1725664384382,0.03379115,53817.0,53816.0,0.028]
[1725664385453,0.03379115,53817.0,53816.0,0.014]
[1725664385683,0.03379115,53817.0,53816.0,0.028]
[1725664388522,0.21960515,53817.0,53816.0,0.028]
[1725664388739,0.03379115,53817.0,53816.0,0.293818]
[1725664389796,0.03379115,53817.0,53816.0,0.756554]
[1725664390232,0.000815,53817.0,53816.0,0.756554]
[1725664390444,0.000815,53817.0,53816.0,0.728554]
[1725664390874,0.000815,53817.0,53816.0,0.756554]
[1725664391922,0.000815,53817.0,53816.0,1.12819]
[1725664392774,0.000815,53817.0,53816.0,1.15119]
[1725664394090,0.000815,53817.0,53816.0,1.13719]
[1725664394758,0.000815,53817.0,53816.0,1.12319]
[1725664395302,0.000815,53817.0,53816.0,1.13719]
[1725664395759,0.000815,53817.0,53816.0,1.15119]
[1725664395985,0.000815,53817.0,53816.0,1.13719]
[1725664396216,0.000815,53817.0,53816.0,1.508826]
[1725664396491,0.000815,53817.0,53816.0,1.522826]
[1725664396716,0.000815,53817.0,53816.0,1.15119]
[1725664400745,0.000815,53817.0,53816.0,1.522826]
[1725664402046,0.000815,53817.0,53816.0,1.508826]
[1725664402275,0.000815,53817.0,53816.0,1.59946489]
[1725664402498,0.000815,53817.0,53816.0,1.508826]
[1725664402782,0.000815,53817.0,53816.0,1.494826]
[1725664403444,0.000815,53817.0,53816.0,1.508826]
[1725664403879,0.000815,53817.0,53816.0,1.522826]
[1725664404267,0.000815,53817.0,53816.0,1.508826]
[1725664404489,0.000815,53817.0,53816.0,1.61346489]
[1725664404697,0.000815,53817.0,53816.0,1.62746489]
[1725664405327,0.000815,53817.0,53816.0,1.61346489]
[1725664405529,0.000815,53817.0,53816.0,1.61546489]
[1725664405748,0.000815,53817.0,53816.0,1.62546489]
[1725664405963,0.000815,53817.0,53816.0,1.99710089]
[1725664406187,0.000815,53817.0,53816.0,2.01110089]
[1725664406422,0.000815,53817.0,53816.0,1.99710089]
[1725664406856,0.000815,53817.0,53816.0,2.01110089]
[1725664407075,0.000815,53817.0,53816.0,1.99710089]
[1725664407316,0.000815,53817.0,53816.0,2.01110089]
[1725664408263,0.000815,53817.0,53816.0,1.99710089]
[1725664408502,0.000815,53817.0,53816.0,2.01110089]
[1725664408938,0.000815,53817.0,53816.0,1.99710089]
[1725664409189,0.000815,53817.0,53816.0,2.01110089]
[1725664409661,0.000815,53817.0,53816.0,1.99710089]
[1725664409915,0.000815,53817.0,53816.0,2.01110089]
[1725664410161,0.000815,53817.0,53816.0,1.99710089]
[1725664410655,0.000815,53817.0,53816.0,2.01110089]
[1725664410894,0.000815,53817.0,53816.0,1.99710089]
[1725664411354,0.000815,53817.0,53816.0,2.01110089]
[1725664412709,0.000815,53817.0,53816.0,1.99710089]
[1725664413004,0.000815,53817.0,53816.0,2.01110089]
[1725664413220,0.000815,53817.0,53816.0,1.99710089]
[1725664413434,0.000815,53817.0,53816.0,2.01110089]
[1725664413639,0.000815,53817.0,53816.0,1.63946489]
[1725664414902,0.000815,53817.0,53816.0,2.01110089]
[1725664415321,0.000815,53817.0,53816.0,1.63946489]
[1725664418962,0.061015,53830.0,53829.0,0.185773]
[1725664418963,0.06087892,53830.0,53829.0,0.185773]
[1725664419193,0.09405693,53830.0,53829.0,0.185773]
[1725664419670,0.09352658,53830.0,53829.0,0.185773]
[1725664420117,0.03918236,53833.0,53829.0,0.185773]
[1725664420352,0.02767078,53830.0,53829.0,0.199773]
[1725664420589,0.02767078,53830.0,53829.0,0.213773]
[1725664420834,0.22494236,53833.0,53829.0,0.213773]
[1725664421068,0.21344078,53830.0,53829.0,0.014]
[1725664421300,0.18577,53830.0,53829.0,0.014]
[1725664421530,0.21344078,53830.0,53829.0,0.014]
[1725664421760,0.21344078,53830.0,53826.0,0.185781]
[1725664421761,0.02767078,53830.0,53826.0,0.371565]
[1725664422047,0.18577,53830.0,53827.0,0.185779]
[1725664422291,0.18577,53830.0,53829.0,0.014]
[1725664422538,0.18577,53830.0,53826.0,0.185783]
[1725664422778,0.18577,53830.0,53829.0,0.014]
[1725664423023,0.18577,53830.0,53829.0,0.013]
[1725664423506,0.18577,53830.0,53827.0,0.014]
[1725664423760,0.18577,53830.0,53829.0,0.014]
[1725664424470,0.18577,53830.0,53827.0,0.18578]
[1725664424926,0.18577,53830.0,53827.0,0.19978]
[1725664425653,0.18577,53830.0,53829.0,0.014]
[1725664425890,0.18577,53830.0,53827.0,0.19978]
[1725664426123,0.18577,53830.0,53827.0,0.18578]
[1725664426349,0.18577,53830.0,53829.0,0.014]
[1725664426586,0.18521764,53830.0,53829.0,0.014]
[1725664426833,0.18521764,53830.0,53827.0,0.18578]
[1725664427110,0.18521764,53830.0,53829.0,0.014]
[1725664427707,0.02767078,53830.0,53829.0,0.0916]
[1725664428140,0.0554577,53837.0,53835.0,0.185752]
[1725664428405,0.11091541,53841.0,53829.0,0.263373]
[1725664428406,0.02767078,53830.0,53829.0,0.263373]
[1725664428619,0.02767078,53836.0,53835.0,0.185752]
[1725664428837,0.00082,53838.0,53835.0,0.185752]
[1725664429053,0.02767078,53836.0,53835.0,0.185752]
[1725664429266,0.186563,53838.0,53835.0,0.185752]
[1725664429488,0.186563,53838.0,53836.0,0.00031521]
[1725664430108,0.2420207,53838.0,53836.0,0.00031521]
[1725664430532,0.02767078,53837.0,53836.0,0.00031521]
[1725664431368,0.02767078,53837.0,53836.0,0.07791521]
[1725664431569,0.02767078,53837.0,53836.0,0.18751521]
[1725664431995,0.02767078,53837.0,53836.0,0.17751521]
[1725664432292,0.02767078,53837.0,53836.0,0.09991521]
[1725664432946,0.02767078,53837.0,53836.0,0.11291521]
[1725664433364,0.02767078,53837.0,53836.0,0.12391521]
[1725664434040,0.02767078,53837.0,53836.0,0.30966421]
[1725664434459,0.02767078,53837.0,53836.0,0.21006421]
[1725664435380,0.02767078,53837.0,53836.0,0.02431521]
[1725664436264,0.05547948,53839.0,53836.0,0.02431521]
[1725664436480,0.02307791,53837.0,53836.0,0.02431521]
[1725664436722,0.18574,53839.0,53836.0,0.02431521]
[1725664436937,0.02307791,53837.0,53836.0,0.02431521]
[1725664437152,0.18574,53839.0,53836.0,0.01331521]
[1725664437397,0.02307791,53837.0,53836.0,0.00031521]
[1725664437631,0.74043228,53837.0,53836.0,0.02031521]
[1725664437837,1.06376589,53837.0,53836.0,0.02031521]
[1725664438061,1.68830203,53837.0,53836.0,0.02031521]
[1725664438326,1.54965776,53837.0,53836.0,0.02031521]
[1725664438982,1.54965776,53837.0,53836.0,0.00931521]
[1725664439226,1.56703593,53837.0,53836.0,0.02231521]
[1725664439456,1.56703593,53837.0,53836.0,0.01331521]
[1725664439706,1.56703593,53837.0,53836.0,0.01131521]
[1725664439987,1.56703593,53837.0,53836.0,0.01331521]
[1725664440225,1.56703593,53837.0,53836.0,0.01131521]
[1725664440456,1.56703593,53837.0,53836.0,0.01231521]
[1725664440698,1.58134214,53837.0,53836.0,0.00031521]
[1725664441375,0.557299,53831.0,53830.0,0.00031521]
[1725664441588,0.82606775,53831.0,53830.0,0.00031521]
[1725664441794,1.22074397,53831.0,53830.0,0.00031521]
[1725664442019,1.24986895,53831.0,53830.0,0.00031521]
[1725664442936,1.22074813,53831.0,53830.0,0.00931521]
[1725664443211,1.22074813,53831.0,53830.0,0.00031521]
[1725664444158,1.16524445,53831.0,53830.0,0.01631521]
[1725664445357,1.24848427,53831.0,53830.0,0.00031521]
[1725664445577,1.24848427,53831.0,53830.0,0.00831521]
[1725664445808,1.27760972,53831.0,53830.0,0.01531521]
[1725664446040,1.27760972,53831.0,53830.0,0.00731521]
[1725664446262,1.27760972,53831.0,53830.0,0.01531521]
[1725664446479,1.16524445,53831.0,53830.0,0.01531521]
[1725664447174,1.27625536,53831.0,53830.0,0.01531521]
[1725664447405,1.16524897,53831.0,53830.0,0.01531521]
[1725664447656,1.30399645,53831.0,53830.0,0.01531521]
[1725664447902,1.16524897,53831.0,53830.0,0.01531521]
[1725664448361,1.27634258,53831.0,53830.0,0.01531521]
[1725664448606,1.30399645,53831.0,53830.0,0.01531521]
[1725664448822,1.33312188,53831.0,53830.0,0.01531521]
[1725664449094,1.1943744,53831.0,53830.0,0.01531521]
[1725664449339,1.1943744,53831.0,53830.0,0.10911521]
[1725664449340,0.62694486,53831.0,53830.0,0.10911521]
[1725664449586,0.62695626,53831.0,53830.0,0.10911521]
[1725664449805,0.71027976,53831.0,53830.0,0.10911521]
[1725664450267,1.08181276,53831.0,53830.0,0.10911521]
[1725664450765,1.08181116,53831.0,53830.0,0.10911521]
[1725664450995,1.05268573,53831.0,53830.0,0.10911521]
[1725664451463,1.05218573,53831.0,53830.0,0.10911521]
[1725664451932,0.04053023,53831.0,53830.0,0.37338521]
[1725664452647,0.04053023,53831.0,53830.0,0.18761521]
[1725664453103,0.04053023,53831.0,53830.0,0.17961521]
[1725664453350,0.04053023,53831.0,53830.0,0.37238521]
[1725664453590,0.04053023,53831.0,53830.0,0.37401521]
[1725664454072,0.04053023,53831.0,53830.0,0.36001521]
[1725664454388,0.04053023,53831.0,53830.0,0.37401521]
[1725664454876,0.04053023,53831.0,53830.0,0.18824521]
[1725664455111,0.04053023,53831.0,53830.0,0.20224521]
[1725664455622,0.06965422,53831.0,53830.0,0.20224521]
[1725664456094,0.04053023,53831.0,53830.0,0.20224521]
[1725664456986,0.04053023,53831.0,53830.0,0.38801521]
[1725664458318,0.04053023,53831.0,53830.0,0.20224521]
[1725664458553,0.06965385,53831.0,53830.0,1.13109521]
[1725664459481,0.06965385,53831.0,53830.0,0.75955521]
[1725664461961,0.04053023,53831.0,53830.0,0.75955521]
[1725664462175,0.04053023,53831.0,53830.0,0.20224521]
[1725664462395,0.04053023,53831.0,53830.0,0.38801521]
[1725664463281,0.42218357,53831.0,53830.0,0.02994521]
[1725664463506,0.23641757,53831.0,53830.0,0.02994521]
[1725664463744,0.42218357,53831.0,53830.0,0.02994521]
[1725664463972,0.23641757,53831.0,53830.0,0.02994521]
[1725664464400,0.33433916,53831.0,53830.0,0.02994521]
[1725664464637,0.33433916,53831.0,53830.0,0.01594521]
[1725664465092,0.36217189,53831.0,53830.0,0.01594521]
[1725664465310,0.36217189,53831.0,53830.0,0.00194521]
[1725664465311,0.25108182,53831.0,53830.0,0.00194521]
[1725664465527,0.25108182,53831.0,53830.0,0.01394521]
[1725664465989,0.25108182,53831.0,53830.0,0.01194521]
[1725664466203,0.25108182,53831.0,53830.0,0.02294521]
[1725664466204,0.33434166,53831.0,53830.0,0.02294521]
[1725664466411,0.28020413,53831.0,53830.0,0.01294521]
[1725664466866,0.28020413,53831.0,53830.0,0.02194521]
[1725664467142,0.28101913,53831.0,53830.0,0.02194521]
[1725664467585,0.58764404,53831.0,53830.0,0.02194521]
[1725664467805,0.6050181,53831.0,53830.0,0.02194521]
[1725664468019,0.28051553,53831.0,53830.0,0.02194521]
[1725664469676,0.28051561,53831.0,53830.0,0.02194521]
[1725664470101,0.08461907,53831.0,53830.0,0.02194521]
[1725664470332,0.22335564,53831.0,53830.0,0.02194521]
[1725664470561,0.12543895,53831.0,53830.0,0.38231521]
[1725664470786,0.06995482,53831.0,53830.0,0.38231521]
[1725664471023,0.04083055,53831.0,53830.0,0.38231521]
[1725664472402,0.04083055,53831.0,53830.0,0.75385521]
[1725664472900,0.04083289,53831.0,53830.0,0.75385521]
[1725664473142,0.01818967,53831.0,53830.0,0.75385521]
[1725664473895,0.01818966,53831.0,53830.0,0.75385521]
[1725664474137,0.01818959,53831.0,53830.0,0.75385521]
[1725664474387,0.01818961,53831.0,53830.0,1.14839521]
[1725664475070,0.01818961,53831.0,53830.0,0.77685521]
[1725664475317,0.04731238,53831.0,53830.0,0.77685521]
[1725664475582,0.04731238,53831.0,53830.0,0.75685521]
[1725664475821,0.04731238,53831.0,53830.0,0.78485521]
[1725664476069,0.04731238,53831.0,53830.0,0.77085521]
[1725664476335,0.04731238,53831.0,53830.0,0.75685521]
[1725664476566,0.04731238,53831.0,53830.0,0.77085521]
[1725664477283,0.04731238,53831.0,53830.0,0.75685521]
[1725664477523,0.04731238,53831.0,53830.0,0.78485521]
[1725664477999,0.01818961,53831.0,53830.0,0.78485521]
[1725664478233,0.0473122,53831.0,53830.0,0.78485521]
[1725664478720,0.0473122,53831.0,53830.0,0.77085521]
[1725664479203,0.0473122,53831.0,53830.0,0.78485521]
[1725664479448,0.0473122,53831.0,53830.0,0.75685521]
[1725664479688,0.0473122,53831.0,53830.0,0.77085521]
[1725664479934,0.02993759,53831.0,53830.0,0.78485521]
[1725664480413,0.0473155,53831.0,53830.0,0.77085521]
[1725664480870,0.0473155,53831.0,53830.0,0.78485521]
[1725664481836,0.01819291,53831.0,53830.0,0.77085521]
[1725664482064,0.01819291,53831.0,53830.0,0.75685521]
[1725664482302,0.01819291,53831.0,53830.0,0.77085521]
[1725664482534,0.01819291,53831.0,53830.0,0.78485521]
[1725664482770,0.01819291,53831.0,53830.0,0.77085521]
[1725664482975,0.01819291,53831.0,53830.0,0.78485521]
[1725664483212,0.01819291,53831.0,53830.0,0.77085521]
[1725664483444,0.01819291,53831.0,53830.0,0.75685521]
[1725664483696,0.01819291,53831.0,53830.0,0.78485521]
[1725664483966,0.01819291,53831.0,53830.0,1.15639521]
[1725664484469,0.01819291,53831.0,53830.0,1.72370201]
[1725664484700,0.01819291,53831.0,53830.0,3.01100201]
[1725664485181,0.01819291,53831.0,53830.0,3.01700201]
[1725664485451,0.02993484,53831.0,53830.0,3.01700201]
[1725664485680,0.02993484,53831.0,53830.0,3.03100201]
[1725664485913,0.02993484,53831.0,53830.0,3.01700201]
[1725664487577,0.02993484,53831.0,53830.0,3.03100201]
[1725664489270,0.02993484,53831.0,53830.0,3.41732803]
[1725664489984,0.000815,53831.0,53830.0,3.41732803]
[1725664490466,0.02993338,53831.0,53830.0,3.41732803]
[1725664490698,0.00081,53851.0,53830.0,3.41732803]
[1725664490699,0.185687,53854.0,53846.0,0.262714]
[1725664490921,0.55430836,53849.0,53848.0,0.185707]
[1725664491150,0.55430836,53849.0,53846.0,0.1721]
[1725664491151,0.01738245,53849.0,53846.0,0.1721]
[1725664491375,0.05542229,53856.0,53847.0,0.185708]
[1725664491376,0.01738245,53848.0,53847.0,0.185708]
[1725664491859,0.01738245,53848.0,53847.0,1.5187408]
[1725664492096,0.01738481,53857.0,53855.0,0.077]
[1725664492319,0.00082,53858.0,53856.0,0.185677]
[1725664492566,0.01738516,53857.0,53856.0,0.185677]
[1725664493346,0.01738515,53857.0,53856.0,0.185677]
[1725664493597,0.01738515,53857.0,53856.0,0.191677]
[1725664493816,0.01738515,53857.0,53856.0,0.185677]
[1725664495157,0.01738515,53857.0,53856.0,0.192677]
[1725664495852,0.046495,53857.0,53856.0,0.192677]
[1725664496508,0.046495,53857.0,53856.0,0.190677]
[1725664496720,0.046495,53857.0,53856.0,0.204677]
[1725664497844,0.046495,53857.0,53856.0,0.576037]
[1725664498090,0.046495,53857.0,53856.0,1.119497]
[1725664498355,0.02910985,53857.0,53856.0,1.508857]
[1725664499008,0.02910985,53857.0,53856.0,1.151497]
[1725664499252,0.02910985,53857.0,53856.0,1.137497]
[1725664499713,0.02910985,53857.0,53856.0,1.151497]
[1725664499927,0.04649677,53857.0,53856.0,0.028]
[1725664500802,0.06609737,53857.0,53856.0,0.028]
[1725664501020,0.25177337,53857.0,53856.0,0.028]
[1725664501465,0.62312637,53857.0,53856.0,0.028]
[1725664501927,0.59401671,53857.0,53856.0,0.028]
[1725664503253,0.22347871,53857.0,53856.0,0.028]
[1725664505434,0.24307931,53857.0,53856.0,0.028]
[1725664506204,0.27218972,53857.0,53856.0,0.028]
[1725664508454,0.27219026,53857.0,53856.0,0.028]
[1725664508671,1.01489626,53857.0,53856.0,0.028]
[1725664509745,0.64354326,53857.0,53856.0,0.028]
[1725664510808,0.99750861,53857.0,53856.0,0.028]
[1725664511272,1.01489358,53857.0,53856.0,0.028]
[1725664511725,0.99750861,53857.0,53856.0,0.028]
[1725664511955,0.61443019,53857.0,53856.0,0.028]
[1725664514184,0.98578319,53857.0,53856.0,0.028]
[1725664514882,0.61443019,53857.0,53856.0,0.028]
[1725664515326,0.98578319,53857.0,53856.0,0.028]
[1725664515772,0.61443019,53857.0,53856.0,0.028]
[1725664517049,0.98578319,53857.0,53856.0,0.028]
[1725664518198,0.98578079,53857.0,53856.0,0.028]
[1725664518415,1.01488923,53857.0,53856.0,0.028]
[1725664519704,0.78919703,53857.0,53856.0,0.028]
[1725664519919,0.80545185,53857.0,53856.0,0.028]
[1725664520140,0.99112785,53857.0,53856.0,0.028]
[1725664521045,1.36248085,53857.0,53856.0,0.028]
[1725664521265,1.83646392,53857.0,53856.0,0.028]
[1725664521486,2.12487841,53857.0,53856.0,0.028]
[1725664521726,0.371491,53837.0,53830.0,0.09513]
[1725664521947,0.78333449,53837.0,53830.0,0.00163]
[1725664522192,1.52631649,53837.0,53830.0,0.00163]
[1725664522627,0.557289,53832.0,53831.0,0.00031521]
[1725664522873,0.20314559,53832.0,53831.0,0.00031521]
[1725664523313,0.21609469,53832.0,53831.0,0.00031521]
[1725664523725,0.58762069,53832.0,53831.0,0.00031521]
[1725664524142,0.58861428,53832.0,53831.0,0.01131521]
[1725664524353,0.58861429,53832.0,53831.0,0.01131521]
[1725664524556,0.58761429,53832.0,53831.0,0.00031521]
[1725664525392,0.58861429,53832.0,53831.0,0.01331521]
[1725664525603,0.58961429,53832.0,53831.0,0.02231521]
[1725664526012,0.58861429,53832.0,53831.0,0.01331521]
[1725664526425,0.58861429,53832.0,53831.0,0.02231521]
[1725664526426,0.58961429,53832.0,53831.0,0.02231521]
[1725664526632,0.58861429,53832.0,53831.0,0.00931521]
[1725664526824,0.58861429,53832.0,53831.0,0.02031521]
[1725664527046,0.58961429,53832.0,53831.0,0.02031521]
[1725664527549,0.5722381,53832.0,53831.0,0.02031521]
[1725664527761,0.58861315,53832.0,53831.0,0.01131521]
[1725664528036,0.58861315,53832.0,53831.0,0.01294521]
[1725664528271,0.58861315,53832.0,53831.0,0.01394521]
[1725664528272,0.03232415,53832.0,53831.0,0.01394521]
[1725664528515,0.03232415,53832.0,53831.0,0.76394421]
[1725664528721,0.03132415,53832.0,53831.0,1.13447721]
[1725664528920,0.001,53832.0,53831.0,1.13447721]
[1725664529143,0.002,53832.0,53831.0,1.13547721]
[1725664529511,0.001,53832.0,53831.0,1.13447721]
[1725664529918,0.001,53832.0,53831.0,1.12347721]
[1725664530323,0.185736,53840.0,53835.0,0.355452]
[1725664530562,0.03023901,53839.0,53835.0,0.5412]
[1725664530798,0.01738369,53838.0,53835.0,0.1697]
[1725664531007,0.01738369,53838.0,53836.0,0.185747]
[1725664531210,0.01738369,53838.0,53833.0,0.371513]
[1725664531211,0.01738369,53838.0,53837.0,0.185745]
[1725664531414,0.01738369,53838.0,53837.0,0.259445]
[1725664531894,0.01738369,53838.0,53837.0,0.0737]
[1725664533814,0.01738369,53838.0,53837.0,0.1697]
[1725664533973,0.01738369,53838.0,53837.0,0.1827]
[1725664534432,0.01738369,53838.0,53837.0,0.1697]
[1725664534593,0.01738369,53838.0,53837.0,0.1837]
[1725664534988,0.01738369,53838.0,53837.0,0.1957]
[1725664535437,0.04350504,53838.0,53837.0,0.1837]
[1725664535622,0.04350504,53838.0,53837.0,0.1967]
[1725664535623,0.01738369,53838.0,53837.0,0.1967]
[1725664535858,0.04350504,53838.0,53837.0,0.1967]
[1725664536068,0.04350504,53838.0,53837.0,0.1827]
[1725664536501,0.22924704,53838.0,53837.0,0.1967]
[1725664536961,0.22924704,53838.0,53837.0,0.1837]
[1725664537425,0.22924704,53838.0,53837.0,0.1817]
[1725664537638,0.04350504,53838.0,53837.0,0.1957]
[1725664538368,0.07262389,53838.0,53837.0,0.381445]
[1725664538816,0.04650254,53838.0,53837.0,0.752936]
[1725664539056,0.04650254,53838.0,53837.0,1.124427]
[1725664539299,0.02911885,53838.0,53837.0,1.124427]
[1725664539546,0.02911885,53838.0,53837.0,0.752936]
[1725664539762,0.04650486,53838.0,53837.0,0.752936]
[1725664540935,0.04731986,53838.0,53837.0,0.752936]
[1725664542031,0.01820101,53838.0,53837.0,0.752936]
[1725664543649,0.94691101,53838.0,53837.0,0.026]
[1725664544090,0.97306797,53838.0,53837.0,0.026]
[1725664546122,0.97307455,53838.0,53837.0,0.026]
[1725664547311,0.97308275,53838.0,53837.0,0.026]
[1725664548025,0.78652575,53838.0,53837.0,0.026]
[1725664548240,0.97226775,53838.0,53837.0,0.026]
[1725664548434,1.00138669,53838.0,53837.0,0.026]
[1725664550393,1.00138672,53838.0,53837.0,0.026]
[1725664551971,0.97226778,53838.0,53837.0,0.026]
[1725664552886,0.60078378,53838.0,53837.0,0.026]
[1725664553545,0.95486696,53838.0,53837.0,0.026]
[1725664553767,0.9722603,53838.0,53837.0,0.026]
[1725664553983,0.9722603,53838.0,53837.0,0.02763]
[1725664554198,0.95486696,53838.0,53837.0,0.02763]
[1725664554406,0.97225939,53838.0,53837.0,0.02763]
[1725664554848,0.97307439,53838.0,53837.0,0.02763]
[1725664555276,1.00219448,53838.0,53837.0,0.02763]
[1725664556192,1.00219448,53838.0,53837.0,0.384275]
[1725664556193,0.07348448,53838.0,53837.0,0.384275]
[1725664556647,0.07348448,53838.0,53837.0,0.19853]
[1725664560876,0.04436439,53838.0,53837.0,0.384275]
[1725664561959,0.04436439,53838.0,53837.0,0.19853]
[1725664563796,0.23010639,53838.0,53837.0,0.02763]
[1725664565392,0.04436439,53838.0,53837.0,0.02763]
[1725664566041,0.23010639,53838.0,53837.0,0.02763]
[1725664566535,0.25922232,53838.0,53837.0,0.02763]
[1725664567397,0.07348032,53838.0,53837.0,0.02763]
[1725664567612,0.07348032,53838.0,53837.0,0.19303]
[1725664568287,0.05608789,53838.0,53837.0,0.19303]
[1725664568515,0.07347602,53838.0,53837.0,0.378775]
[1725664568762,0.07347602,53838.0,53837.0,0.19303]
[1725664571311,0.07347602,53838.0,53837.0,0.378775]
[1725664571541,0.02697196,53838.0,53837.0,0.378775]
[1725664571821,0.04435745,53838.0,53837.0,1.6890148]
[1725664572077,0.04435745,53838.0,53837.0,1.7440148]
[1725664572297,0.01820049,53838.0,53837.0,1.7440148]
[1725664572518,0.000815,53838.0,53837.0,1.7440148]
[1725664572761,0.000815,53838.0,53837.0,2.1155058]
[1725664573113,0.2412126,53856.0,53851.0,0.185694]
[1725664573345,0.000815,53857.0,53853.0,0.185688]
[1725664573346,0.571701,53855.0,53853.0,0.185688]
[1725664573563,0.01739264,53854.0,53852.0,0.1654]
[1725664573784,0.04359216,53853.0,53852.0,0.351093]
[1725664574258,0.04359216,53853.0,53852.0,0.350093]
[1725664574722,0.02619952,53853.0,53852.0,0.350093]
[1725664574965,0.04359213,53853.0,53852.0,0.359093]
[1725664575474,0.04359213,53853.0,53852.0,0.350093]
[1725664575708,0.23028413,53853.0,53852.0,0.012]
[1725664575927,0.04459213,53853.0,53852.0,0.012]
[1725664576143,0.07370374,53853.0,53852.0,0.012]
[1725664576383,0.07370374,53853.0,53852.0,0.026]
[1725664577306,0.07270374,53853.0,53852.0,0.0883]
[1725664577524,0.07270374,53853.0,53852.0,0.365094]
[1725664577773,0.07270374,53853.0,53852.0,1.11987]
[1725664578011,0.04650422,53853.0,53852.0,1.11987]
[1725664578238,0.02911161,53853.0,53852.0,1.10787]
[1725664578448,0.04650911,53853.0,53852.0,1.11987]
[1725664578667,0.04650911,53853.0,53852.0,1.10587]
[1725664578907,0.04650911,53853.0,53852.0,1.10787]
[1725664579135,0.04650911,53853.0,53852.0,1.1095]
[1725664579385,0.04650911,53853.0,53852.0,1.1225]
[1725664579589,0.04732411,53853.0,53852.0,1.1225]
[1725664579809,0.04732411,53853.0,53852.0,1.1085]
[1725664580058,0.04732411,53853.0,53852.0,1.1225]
[1725664581040,0.000815,53857.0,53856.0,1.6609268]
[1725664581288,0.000815,53857.0,53856.0,0.9412068]
[1725664581535,0.000815,53857.0,53856.0,1.1168]
[1725664582528,0.000815,53857.0,53856.0,1.1308]
[1725664583945,0.000815,53857.0,53856.0,1.1448]
[1725664585125,0.02992045,53857.0,53856.0,1.1448]
[1725664585828,0.02992045,53857.0,53856.0,1.51616]
[1725664589419,0.02992045,53857.0,53856.0,1.7119268]
[1725664591656,0.02992045,53857.0,53856.0,2.0932868]
[1725664591828,0.02992045,53857.0,53856.0,2.4746468]
[1725664591829,0.000815,53857.0,53856.0,2.4746468]
[1725664592034,0.000815,53857.0,53856.0,2.4866468]
[1725664592657,0.000815,53857.0,53856.0,2.4726468]
[1725664593260,0.000815,53857.0,53856.0,2.4866468]